Cogmind - Beta 15 @@@ ROGUE MODE // 2025.06.21 @ 17:54:56 Player: Storm Mk9 Result: Destroyed by S-27 Virus with Autogun Performance ------------- Evolutions (6) 3000 Regions Visited (15) 3000 Robots Destroyed (146) 730 Value Destroyed (5843) 5843 Prototype IDs (36) 720 Alien Tech Used (1) 200 Bonus (2312) 2312 TOTAL SCORE: 15805 Bonus ------- High Alert Combat Kills 16 Follower Combat Kills 1853 Met Zhirov 300 A7 Reached Mainframe 300 Friendly Fire -157 Cogmind --------- Core Integrity 0/1150 Matter 300/300 Energy 100/100 System Corruption 12% Temperature Cool (0) Movement Core (50) Location -4/Factory Parts ------- > --- POWER (2) -------- (None) > --- PROPULSION (3) --- (None) > --- UTILITY (10) ----- (None) > --- WEAPON (4) ------- (None) > --- INVENTORY (5) ---- Armored Treads Matter Compressor (202) Advanced Hacking Suite Dynamic Insulation System Advanced System Restoration Module Peak State ------------ > --- POWER ------------ Particle-Momentum Reactor > --- PROPULSION ------- Myomer-Armored Exoskeleton > --- UTILITY ---------- Armored Scrap Engine Advanced Heat Sink Advanced Heat Sink High-capacity Storage Unit Centrium Medium Armor Plating Centrium Medium Armor Plating Improved Thermal Shield > --- WEAPON ----------- Bore Cannon Hyp. Kinetic Rail Construct/C > --- INVENTORY -------- Nuclear Core Reinforced Deuterium Engine Armored Treads Armored Treads Armored Treads Myomer Leg Advanced Heat Sink Matter Compressor Hardened Heavy Armor Plating Improved Light Armor Plating Dynamic Insulation System System Restoration Module Advanced KE Penetrator Advanced KE Penetrator Magnetic Acceleration Cannon Magnetic Acceleration Cannon Bore Cannon [Rating: 116] Favorites ----------- Power Constructs Engine Ion Engine Power Core Light Nuclear Core Reactor Constructs Propulsion Constructs Treads Armored Treads Leg Constructs Utility High-capacity Storage Unit Device Advanced Heat Sink Storage High-capacity Storage Unit Processor Armor Integrity Analyzer Protection Improved Light Armor Plating Weapon Constructs Energy Gun Heavy Particle Gun Ballistic Gun Assault Rifle Ballistic Cannon Constructs Launcher Grenade Launcher Special Weapon Mining Laser Impact Weapon Shock Maul Build | -11 -10 -10 -8 -8 -8 -6 -6 -6 -6 -5 -5 -5 -5 -4 -4 ------- Run | Yrd Mat Sub Mat Sto Rec Fac Ext Cet Arc Fac Upp Upp Zhi Pro Fac Slots Evolved 12 | . . . 4 . . 4 . . . 2 . . . . 2 Power 1 | . . . . . . 1 . . . . . . . . . Propulsion 1 | . . . . . . 1 . . . . . . . . . Utility 8 | . . . 3 . . 1 . . . 2 . . . . 2 Weapon 2 | . . . 1 . . 1 . . . . . . . . . Parts Attached 85 | 7 4 6 35 2 2 5 6 4 1 1 1 3 2 1 5 Power 5 | 1 . . 4 . . . . . . . . . . . . Engine 4 | 1 . . 3 . . . . . . . . . . . . Core 1 | . . . 1 . . . . . . . . . . . . Reactor . | . . . . . . . . . . . . . . . . Propulsion 9 | 2 1 . 5 . 1 . . . . . . . . . . Treads 7 | 2 1 . 3 . 1 . . . . . . . . . . Leg 2 | . . . 2 . . . . . . . . . . . . Wheel . | . . . . . . . . . . . . . . . . Hover . | . . . . . . . . . . . . . . . . Flight . | . . . . . . . . . . . . . . . . Utility 41 | 2 2 1 10 2 1 5 5 2 1 1 . 2 2 1 4 Device 18 | 1 . . 4 1 1 2 2 . 1 1 . 1 . . 4 Storage 3 | 1 1 . . . . . . . . . . . 1 . . Processor 1 | . . . 1 . . . . . . . . . . . . Hackware . | . . . . . . . . . . . . . . . . Protection 19 | . 1 1 5 1 . 3 3 2 . . . 1 1 1 . Artifact . | . . . . . . . . . . . . . . . . Weapon 30 | 2 1 5 16 . . . 1 2 . . 1 1 . . 1 Energy Gun 10 | 1 1 . 7 . . . . 1 . . . . . . . Energy Cannon . | . . . . . . . . . . . . . . . . Ballistic Gun 15 | 1 . 3 9 . . . 1 1 . . . . . . . Ballistic Cannon 2 | . . . . . . . . . . . 1 1 . . . Launcher 1 | . . 1 . . . . . . . . . . . . . Special Weapon 1 | . . 1 . . . . . . . . . . . . . Impact Weapon 1 | . . . . . . . . . . . . . . . 1 Slashing Weapon . | . . . . . . . . . . . . . . . . Piercing Weapon . | . . . . . . . . . . . . . . . . Special Melee Weapon . | . . . . . . . . . . . . . . . . Unidentified Prototypes 12 | . . . 4 . 1 . . 3 . . . . 3 . 1 Parts Lost 60 | . . 5 25 2 . 1 4 . . . . 3 . 11 9 Power 6 | . . . 4 . . . . . . . . . . 2 . Propulsion 10 | . . 2 3 . . . . . . . . . . 2 3 Utility 25 | . . 1 6 2 . 1 3 . . . . 2 . 4 6 Weapon 19 | . . 2 12 . . . 1 . . . . 1 . 3 . Highest Loss Streak 9 | . . 3 8 2 . 1 1 . . . . 2 . 8 9 To Critical Strikes . | . . . . . . . . . . . . . . . . Average Backups 14 | 2 10 11 12 16 14 19 17 18 18 18 17 10 10 10 4 Power 1 | . 1 1 1 . . 2 2 2 2 2 2 2 2 2 . Propulsion 3 | . . . 2 5 4 4 3 4 4 4 4 4 4 3 1 Utility 4 | . 4 4 2 2 3 8 5 5 6 6 6 4 4 3 3 Weapon 5 | 1 4 6 6 9 6 4 6 7 6 6 5 . . . . Tool/Special . | . . . . . . . . . . . . . . . . Unused Backups 44 | . . . . 2 6 8 6 4 . . 6 . 1 5 6 Power 4 | . . . . . . . 1 . . . . . . 3 . Propulsion 7 | . . . . . 1 1 1 . . . . . . 1 3 Utility 11 | . . . . . . 5 . . . . 1 . 1 1 3 Weapon 22 | . . . . 2 5 2 4 4 . . 5 . . . . Tool/Special . | . . . . . . . . . . . . . . . . Average Slot Usage (%) 70 | . 99 96 95 97 77 50 52 53 53 55 58 63 59 45 28 Engine 5 | . 14 14 4 9 6 3 4 1 . . 1 5 5 3 . Core 1 | . . . 4 . 2 2 1 . . . . . . . . Treads 9 | . 27 24 14 18 12 1 . 6 3 . . . . . 2 Leg 2 | . . . 1 . . 1 5 . 2 5 5 5 5 5 2 Device 15 | . 1 . 17 15 17 15 17 13 15 20 23 17 17 14 24 Storage 7 | . 14 14 9 9 9 6 6 6 6 5 5 5 5 4 . Processor 1 | . . . 6 9 3 . . . . . . . . . . Protection 10 | . 12 14 11 9 8 7 8 13 10 11 11 16 14 9 . Energy Gun 4 | . 14 2 8 18 8 . . . . . . . . . . Energy Cannon 1 | . . . . . 2 4 3 2 3 5 4 . 5 . . Ballistic Gun 6 | . 14 24 17 9 5 . . . . . . . . . . Ballistic Cannon 1 | . . . . . . 1 2 3 2 . . 9 3 4 . Peak Build Rating 116 | 7 8 10 38 40 48 74 87 96 100 114 116 116 106 99 77 Average Rating 56 | 5 7 8 29 37 39 63 77 90 96 111 111 105 98 80 61 On Entrance 59 | . 7 8 10 38 39 47 73 78 94 100 114 111 101 94 33 Naked Turns 7 | . . . . . . . . . . . . . . . 7 Heaviest Build 117 | 14 51 54 67 58 61 82 92 96 96 103 107 117 113 114 15 Greatest Support 108 | 40 40 40 40 40 49 76 106 106 108 108 108 108 66 66 3 Greatest Overweight (x) 20 | . 2 2 20 1 18 1 1 . . . . 1 1 1 4 Average Overweight (x) . | . . 1 1 1 1 . . . . . . . 1 . 1 Largest Inventory Capacity 20 | 8 20 20 20 20 20 20 20 20 20 20 20 20 20 20 5 Average Capacity 19 | 7 17 20 20 20 20 20 20 20 20 20 20 20 20 17 5 Most Carried 20 | 5 12 16 19 20 20 20 20 20 20 20 20 14 13 14 5 Average Carried 15 | 2 10 12 14 18 16 19 18 19 19 19 18 11 11 10 4 Final Capacity 20 | 8 20 20 20 20 20 20 20 20 20 20 20 20 20 5 5 Final Carried 20 | 3 12 16 19 20 20 19 20 18 20 19 14 11 13 5 5 Scrap Engine Consumption 174 | . . . . . 37 16 64 8 7 1 17 5 1 7 11 Constructs Created 6 | . . . . . 3 . 2 . . . 1 . . . . Constructs Modified 72 | . . . . . 12 9 26 5 3 1 7 2 . 3 4 Class Distribution -------------------- 27% | Mutant 22% | Construct 15% | Scavenger-Construct 12% | Commander-Construct 9% | Scavenger-Gunner 5% | Commander-Gunner 4% | Gunner Dominant Class ---------------- Mutant | -10/Materials Mutant | -10/Subcaves Scavenger-Gunner | -8/Materials Scavenger-Gunner | -8/Storage Construct | -8/Recycling Construct | -6/Factory Construct | -6/Extension Commander-Construct | -6/Cetus Commander-Construct | -6/Archives Commander-Construct | -5/Factory Scavenger-Construct | -5/Upper Caves Scavenger-Construct | -5/Upper Caves Scavenger-Construct | -5/Zhirov Construct | -4/Proximity Caves Mutant | -4/Factory Resources | -11 -10 -10 -8 -8 -8 -6 -6 -6 -6 -5 -5 -5 -5 -4 -4 ----------- Run | Yrd Mat Sub Mat Sto Rec Fac Ext Cet Arc Fac Upp Upp Zhi Pro Fac Matter Collected 4108 | 314 373 174 866 56 62 490 705 50 103 . 111 288 250 236 30 Remotely . | . . . . . . . . . . . . . . . . Salvage Created 6821 | 113 500 210 1610 130 99 793 1847 . 90 . 233 373 . 823 . Parts 314 | 12 26 10 85 7 8 35 71 . 4 . 7 16 . 33 . Haulers Intercepted 2 | . 1 . 1 . . . . . . . . . . . . Recyclers Shooed 1 | . . . . . . 1 . . . . . . . . . Parts Field Recycled . | . . . . . . . . . . . . . . . . Retrieved Matter . | . . . . . . . . . . . . . . . . Parts Self-Destructed 64 | . . 6 . . . . . . . . 16 14 . 28 . Prevented . | . . . . . . . . . . . . . . . . Kills | -11 -10 -10 -8 -8 -8 -6 -6 -6 -6 -5 -5 -5 -5 -4 -4 ------- Run | Yrd Mat Sub Mat Sto Rec Fac Ext Cet Arc Fac Upp Upp Zhi Pro Fac Combat Hostiles Destroyed 127 | . 12 5 37 5 2 15 23 . 1 . 4 11 . 12 . Guns 55 | . 12 3 33 5 2 . . . . . . . . . . Cannons 57 | . . . . . . 7 23 . 1 . 4 11 . 11 . AOE 12 | . . 2 4 . . 5 . . . . . . . 1 . Classes Destroyed 18 | 1 3 1 8 1 . 1 1 . . . 1 . . 1 . Worker 4 | . . . 4 . . . . . . . . . . . . Builder 1 | . . . 1 . . . . . . . . . . . . Tunneler 5 | 5 . . . . . . . . . . . . . . . Hauler 2 | . 1 . 1 . . . . . . . . . . . . Recycler 2 | . . . 1 . . . 1 . . . . . . . . Operator 2 | . . . . 1 . 1 . . . . . . . . . Watcher 2 | . . . 2 . . . . . . . . . . . . Swarmer 32 | . 3 . 11 4 . 4 2 . . . . 7 . 1 . Grunt 47 | . 9 . 14 1 . 2 13 . . . 1 2 . 5 . Brawler 4 | . . . . . . . . . . . 1 1 . 2 . Protector 1 | . . . . . . . . . . . . . . 1 . Sentry 19 | . . . 6 . 1 2 7 . 1 . . 1 . 1 . Specialist 4 | . . . 4 . . . . . . . . . . . . Hunter 7 | . . . 1 . . 4 . . . . . . . 2 . Programmer 3 | . . . . . . 3 . . . . . . . . . Heavy 1 | . . . 1 . . . . . . . . . . . . Subdweller 6 | . . 5 . . 1 . . . . . . . . . . Thug 3 | . . . . . . . 1 . . . 2 . . . . Butcher 1 | . . . . . . . 1 . . . . . . . . Best Kill Streak 7 | 2 4 2 7 4 1 5 4 . 1 . 2 4 . 3 . Combat Bots Only 6 | . 4 2 6 4 1 5 4 . 1 . 2 4 . 3 . Max Kills in Single Turn 4 | 1 1 2 2 1 1 4 1 . 1 . 1 2 . 1 . Gunslinging 1 | . . 1 . . . . . . . . . . . . . Exploded 4 | . . 1 2 . . 4 . . . . . . . 1 . Melee . | . . . . . . . . . . . . . . . . Uniques/NPCs Destroyed . | . . . . . . . . . . . . . . . . Combat | -11 -10 -10 -8 -8 -8 -6 -6 -6 -6 -5 -5 -5 -5 -4 -4 -------- Run | Yrd Mat Sub Mat Sto Rec Fac Ext Cet Arc Fac Upp Upp Zhi Pro Fac Hostile Shots Fired 1362 | . 68 24 241 19 2 93 299 20 12 . 46 77 . 300 161 Missed 355 | . 14 6 60 4 . 20 115 5 3 . 9 17 . 68 34 Hits 1007 | . 54 18 181 15 2 73 184 15 9 . 37 60 . 232 127 Melee 4 | . . . . . . . . . . . . . . 4 . Projectile 1003 | . 54 18 181 15 2 73 184 15 9 . 37 60 . 228 127 AOE 4 | . . 3 . . . . . . . . . . . . 1 Critical Strikes 45 | . 2 . 5 . . 3 6 1 . . 2 . . 17 9 Damage Taken 16663 | . 589 589 2903 174 41 1151 2173 246 246 . 545 1124 . 4463 2419 Core 2661 | . 123 110 449 . . 143 161 . 26 . 27 59 . 411 1152 Absorbed by Shields 312 | . . . . . . 146 42 124 . . . . . . . Ignored by Resistances 288 | . . . 32 . . 93 . . . . 163 . . . . Regen/Repaired (Parts) 3240 | . . . . . 10 334 1273 151 209 . 308 374 100 267 214 Core Remaining (%) 47 | 100 . 6 . . 18 . . . 61 . . . . 50 . Volleys Fired 512 | 15 44 26 116 14 5 32 127 11 9 . 19 41 . 53 . Largest 3 | 2 2 2 3 3 3 1 1 1 1 . 1 1 . 2 . Hottest 323 | 60 60 100 190 141 141 137 137 158 158 . 323 323 . 282 . Shots Fired 811 | 30 83 41 303 42 11 32 125 11 9 . 19 41 . 64 . Gun 491 | 30 83 34 293 42 9 . . . . . . . . . . Cannon 301 | . . . . . . 32 125 11 9 . 19 41 . 64 . Launcher 7 | . . 3 4 . . . . . . . . . . . . Special 12 | . . 4 6 . 2 . . . . . . . . . . Kinetic 526 | 15 44 34 209 14 3 1 86 5 9 . 9 41 . 56 . Thermal 239 | 15 39 4 60 28 8 22 39 6 . . 10 . . 8 . Explosive 7 | . . 3 4 . . . . . . . . . . . . Electromagnetic 39 | . . . 30 . . 9 . . . . . . . . . Robot Hit Streak 18 | 5 12 8 18 13 15 7 9 6 3 . 6 11 . 8 . Robot Miss Streak 7 | 3 5 3 7 5 1 2 6 1 1 . 3 3 . 3 . Penetration Max 1 | . . . 1 . . . 1 . . . . 1 . 1 . Secondary Targets 12 | . 1 1 8 1 1 . . . . . . . . . . Max Gunslinging Chain 1 | . 1 1 1 1 1 . . . . . . . . . . Shots Hit Robots 529 | 17 58 27 201 26 7 23 81 7 6 . 12 24 . 40 . Core Hits 227 | 5 24 10 89 8 3 12 28 1 1 . 4 13 . 24 5 Critical Kills 18 | . 1 1 . . . . . . 1 . 2 9 . 4 . Critical Parts Destroyed 16 | . . . 1 . . . 1 . . . 3 6 . 5 . Critical Strikes 40 | . 1 1 2 . 2 . 1 . 2 . 6 16 . 9 . Burn 4 | . . . 1 . 2 . . . . . 1 . . . . Destroy 36 | . 1 1 1 . . . 1 . 2 . 5 16 . 9 . Melee Attacks . | . . . . . . . . . . . . . . . . Impact . | . . . . . . . . . . . . . . . . Slashing . | . . . . . . . . . . . . . . . . Piercing . | . . . . . . . . . . . . . . . . Sneak Attacks . | . . . . . . . . . . . . . . . . Combat Hostiles . | . . . . . . . . . . . . . . . . Follow-up Attacks . | . . . . . . . . . . . . . . . . Damage Inflicted 17067 | 217 736 453 3545 516 136 2086 5054 430 217 . 621 1034 . 1935 87 Guns 4970 | 217 736 303 3062 516 136 . . . . . . . . . . Cannons 10760 | . . . . . . 1762 5054 430 217 . 621 1034 . 1642 . Explosions 1248 | . . 150 483 . . 324 . . . . . . . 291 . Melee . | . . . . . . . . . . . . . . . . Ramming 89 | . . . . . . . . . . . . . . 2 87 Kinetic 9583 | 109 413 303 2054 138 17 80 3344 226 217 . 166 1034 . 1482 . Thermal 6022 | 108 323 . 812 378 119 1462 1710 204 . . 455 . . 451 . Explosive 429 | . . 150 279 . . . . . . . . . . . . Electromagnetic 944 | . . . 400 . . 544 . . . . . . . . . Impact . | . . . . . . . . . . . . . . . . Slashing . | . . . . . . . . . . . . . . . . Piercing . | . . . . . . . . . . . . . . . . Highest Corruption 12 | . . . . . . 1 1 2 2 . . . . . 12 Average Corruption 1 | . . . . . . 1 1 1 2 . . . . . 5 Corruption Purged 5 | . . . . . . . . . . . . . . . 5 Corruption Blocked . | . . . . . . . . . . . . . . . . Effects 33 | . . . . . . 5 12 9 6 . . . . . 1 Message Errors 9 | . . . . . . 1 3 4 1 . . . . . . Matter Fused 6 | . . . . . . 1 2 1 2 . . . . . . Heat Flow Errors 6 | . . . . . . 2 1 2 . . . . . . 1 Energy Discharges 5 | . . . . . . 1 2 . 2 . . . . . . Data Loss (minor) 4 | . . . . . . . 2 1 1 . . . . . . Data Loss (major) 1 | . . . . . . . . 1 . . . . . . . Weapon Failures 2 | . . . . . . . 2 . . . . . . . . Overload Shots . | . . . . . . . . . . . . . . . . Overflow Damage 870 | . . . 16 . . 259 523 . . . 30 13 . 29 . Projectiles 832 | . . . . . . 237 523 . . . 30 13 . 29 . Explosions 38 | . . . 16 . . 22 . . . . . . . . . Melee . | . . . . . . . . . . . . . . . . Knockbacks 34 | . . . . . . . 11 3 . . 2 4 . 14 . Impact . | . . . . . . . . . . . . . . . . Kinetic 34 | . . . . . . . 11 3 . . 2 4 . 14 . Secondary . | . . . . . . . . . . . . . . . . Self-Inflicted Damage 225 | . . . 162 . . 40 . . . . . . . . 23 Shots 5 | . . . 4 . . 1 . . . . . . . . . Rammed 23 | . . . . . . . . . . . . . . . 23 Targets Rammed 52 | . . . . . . . . . . . . . . 3 49 Kicked 29 | . . . . . . . . . . . . . . 3 26 Crushed . | . . . . . . . . . . . . . . . . Highest Temperature 538 | . 202 . 355 381 128 476 389 538 371 . 496 487 . 525 41 Average Temperature 137 | . 56 . 85 139 60 156 119 193 202 . 219 167 . 230 41 Received Heat Transfer 3856 | . 288 72 972 54 . 78 869 . 9 . 306 117 . 1079 12 Effects 33 | . . . 1 1 . 3 4 5 2 . 5 2 . 10 . Shutdowns 11 | . . . 1 . . 1 1 1 2 . 3 1 . 1 . Energy Bleed 9 | . . . . . . 1 1 4 . . 1 . . 2 . Interference 9 | . . . . . . 1 1 . . . . . . 7 . Matter Decay 2 | . . . . . . . 1 . . . . 1 . . . Damage (minor) 2 | . . . . 1 . . . . . . 1 . . . . Siege Activations . | . . . . . . . . . . . . . . . . Martial Activations . | . . . . . . . . . . . . . . . . Shielding Activations . | . . . . . . . . . . . . . . . . Robots Disrupted 1 | . . . . . . . . . . . . . . 1 . Combat Hostiles 1 | . . . . . . . . . . . . . . 1 . Robots Corrupted 3 | . . . . . . 3 . . . . . . . . . Combat Hostiles 3 | . . . . . . 3 . . . . . . . . . Parts Fried 7 | . . . 3 . . 4 . . . . . . . . . Impact Corruptions . | . . . . . . . . . . . . . . . . Robots Melted . | . . . . . . . . . . . . . . . . Combat Hostiles . | . . . . . . . . . . . . . . . . Parts Melted 8 | . . . 1 . 2 . 3 . . . 2 . . . . Heat Transferred 5675 | 250 725 . 1706 703 370 250 977 150 . . 333 . . 211 . Parts Sabotaged . | . . . . . . . . . . . . . . . . Parts Stolen . | . . . . . . . . . . . . . . . . Parts Stripped . | . . . . . . . . . . . . . . . . Power Chain Reactions 5 | . . . 2 . . 2 . . . . . . . 1 . Alert | -11 -10 -10 -8 -8 -8 -6 -6 -6 -6 -5 -5 -5 -5 -4 -4 ------- Run | Yrd Mat Sub Mat Sto Rec Fac Ext Cet Arc Fac Upp Upp Zhi Pro Fac Maximum Alert Level 2 | . . . 2 1 . 1 2 1 . . . . . . . Low Security (%) 73 | 100 100 . 62 54 100 95 17 . 100 100 . . . . 100 Level 1 22 | . . . 28 45 . 4 68 100 . . . . . . . Level 2 3 | . . . 9 . . . 13 . . . . . . . . Level 3 . | . . . . . . . . . . . . . . . . Level 4 . | . . . . . . . . . . . . . . . . Level 5 . | . . . . . . . . . . . . . . . . High Security . | . . . . . . . . . . . . . . . . Max Security . | . . . . . . . . . . . . . . . . Peak Influence 449 | 5 166 . 428 324 118 204 449 390 177 190 . . . . 143 Initial 246 | . . . . 172 118 . 98 246 82 . . . . . 143 Average 108 | . 44 . 164 195 5 61 269 299 82 77 . . . . 33 Influence Increases 5676 | 25 334 . 1089 515 52 497 1237 261 195 323 228 390 . 515 15 Destroy 0b10 Robot/C 3180 | . 240 . 740 280 20 300 720 120 80 80 160 220 . 220 . Destroy 0b10 Robot/NC 130 | 25 5 . 45 5 . 10 30 5 . . . . . 5 . Destroy Leader 544 | . 62 . 186 50 . 92 74 10 . 10 20 20 . 20 . Allied During Kill 662 | . . . . 134 7 24 214 103 80 52 48 . . . . Successful Hack 125 | . 10 . . 15 8 28 52 . . 12 . . . . . Disable Machine 165 | . 15 . 45 . 15 15 30 15 30 . . . . . . Anti-Garrison Action 150 | . . . . . . . . . . 150 . . . . . Destroy Structure 120 | . 2 . 43 1 2 13 42 8 5 4 . . . . . Lose Combat Pursuer 600 | . . . 30 30 . 15 75 . . 15 . 150 . 270 15 Influence Decreases 5676 | 25 334 . 680 619 357 297 996 497 400 182 369 390 . 287 243 Entered New Map 982 | . . . . 237 187 . 102 195 123 . 53 . . . 85 Time Decay 3683 | 25 334 . 457 262 155 253 654 302 197 42 256 360 . 238 148 Lost Part 382 | . . . 223 20 . 10 40 . . . . 30 . 49 10 Lost Ally 629 | . . . . 100 15 34 200 . 80 140 60 . . . . Squads Dispatched 27 | . 3 . 7 2 . 5 4 1 . 2 . . . 1 2 Investigation 6 | . 1 . 1 1 . 1 1 1 . . . . . . . Extermination 5 | . . . . . . 3 . . . . . . . . 2 Reinforcement 10 | . 2 . 4 1 . . 3 . . . . . . . . Assault 4 | . . . 1 . . . . . . 2 . . . 1 . Garrison 2 | . . . 1 . . 1 . . . . . . . . . Intercept . | . . . . . . . . . . . . . . . . Searches Triggered . | . . . . . . . . . . . . . . . . Construction Impeded 1 | . . . . . . . 1 . . . . . . . . Haulers Reinforced . | . . . . . . . . . . . . . . . . Active Scanning Responses . | . . . . . . . . . . . . . . . . Cargo Convoy Interrupts . | . . . . . . . . . . . . . . . . Stealth | -11 -10 -10 -8 -8 -8 -6 -6 -6 -6 -5 -5 -5 -5 -4 -4 --------- Run | Yrd Mat Sub Mat Sto Rec Fac Ext Cet Arc Fac Upp Upp Zhi Pro Fac Distress Signals 14 | . 1 . 6 . 2 3 1 1 . . . . . . . Communications Jammed . | . . . . . . . . . . . . . . . . Distress Signals . | . . . . . . . . . . . . . . . . Times Spotted 258 | . 21 5 60 11 5 20 46 11 4 4 14 20 . 29 8 Peak Tracking Total 11 | . 5 2 7 5 2 4 6 5 1 5 5 5 . 11 7 Tactical Retreats 24 | . . . 1 1 1 1 4 . . 1 2 8 . 4 1 Traps | -11 -10 -10 -8 -8 -8 -6 -6 -6 -6 -5 -5 -5 -5 -4 -4 ------- Run | Yrd Mat Sub Mat Sto Rec Fac Ext Cet Arc Fac Upp Upp Zhi Pro Fac Traps Triggered 10 | . 1 2 . . . 6 1 . . . . . . . . Indirectly . | . . . . . . . . . . . . . . . . Trap Hack Attempts . | . . . . . . . . . . . . . . . . Triggered . | . . . . . . . . . . . . . . . . Disarmed . | . . . . . . . . . . . . . . . . Reprogrammed . | . . . . . . . . . . . . . . . . Reused . | . . . . . . . . . . . . . . . . Traps Extracted . | . . . . . . . . . . . . . . . . Installed . | . . . . . . . . . . . . . . . . Triggered . | . . . . . . . . . . . . . . . . Most Traps Carried 2 | . . 2 2 2 2 . . . . . . . . . . Machines | -11 -10 -10 -8 -8 -8 -6 -6 -6 -6 -5 -5 -5 -5 -4 -4 ---------- Run | Yrd Mat Sub Mat Sto Rec Fac Ext Cet Arc Fac Upp Upp Zhi Pro Fac Machines Disabled 12 | . 1 . 3 . 1 1 2 1 2 1 . . . . . Max in Single Turn 1 | . 1 . 1 . . 1 1 1 1 . . . . . . Garrison Access 3 | . . . 1 . . . . . . 1 . . . . 1 Machines Repaired . | . . . . . . . . . . . . . . . . Machines Dismantled . | . . . . . . . . . . . . . . . . Machines Sabotaged . | . . . . . . . . . . . . . . . . Overloaded Fab Kills . | . . . . . . . . . . . . . . . . Hacking | -11 -10 -10 -8 -8 -8 -6 -6 -6 -6 -5 -5 -5 -5 -4 -4 --------- Run | Yrd Mat Sub Mat Sto Rec Fac Ext Cet Arc Fac Upp Upp Zhi Pro Fac Machines Accessed 51 | . 6 1 4 5 6 6 10 1 . 1 1 . 6 . 4 Terminals 35 | . 6 . 2 5 5 4 10 1 . 1 . . . . 1 Fabricators 1 | . . . . . . . . . . . . . . . 1 Repair Stations . | . . . . . . . . . . . . . . . . Recycling Units 3 | . . . 1 . . 1 . . . . . . . . 1 Scanalyzers . | . . . . . . . . . . . . . . . . Garrison Access 3 | . . . 1 . . 1 . . . . . . . . 1 Total Hacks 129 | . 15 3 8 11 19 10 27 2 . 7 1 . 19 . 7 Successful 71 | . 11 3 2 5 10 4 12 . . 2 1 . 19 . 2 Failed 58 | . 4 . 6 6 9 6 15 2 . 5 . . . . 5 Catastrophic 14 | . . . 3 3 1 1 4 1 . . . . . . 1 Database Lockouts . | . . . . . . . . . . . . . . . . Manual 53 | . 7 . 2 7 17 1 11 1 . 5 . . . . 2 Terminals 91 | . 15 . 3 11 17 7 27 2 . 7 . . . . 2 Fabricators 1 | . . . . . . . . . . . . . . . 1 Repair Stations . | . . . . . . . . . . . . . . . . Recycling Units 6 | . . . 3 . . 1 . . . . . . . . 2 Scanalyzers . | . . . . . . . . . . . . . . . . Garrison Access 6 | . . . 2 . . 2 . . . . . . . . 2 Terminal Hacks 45 | . 7 3 1 3 3 2 5 . . 1 1 . 19 . . Record 10 | . . 3 . . . . . . . . . . 7 . . Part Schematic 4 | . . . . . . . . . . . . . 4 . . Robot Analysis 8 | . 2 . . . 1 . 1 . . . . . 4 . . Prototype ID Bank 9 | . 3 . . . . 1 1 . . . . . 4 . . Open Door 6 | . . . . 2 . 1 2 . . . 1 . . . . Branch Access Points 3 | . . . 1 1 . . . . . 1 . . . . . Locate Traps 3 | . 2 . . . . . 1 . . . . . . . . Release Object 2 | . . . . . 2 . . . . . . . . . . Fabricator Hacks 1 | . . . . . . . . . . . . . . . 1 Build 1 | . . . . . . . . . . . . . . . 1 Repair Station Hacks . | . . . . . . . . . . . . . . . . Recycling Unit Hacks 1 | . . . . . . 1 . . . . . . . . . Retrieve Components 1 | . . . . . . 1 . . . . . . . . . Scanalyzer . | . . . . . . . . . . . . . . . . Garrison Access Hacks 2 | . . . 1 . . . . . . . . . . . 1 Seal Access 2 | . . . 1 . . . . . . . . . . . 1 Unauthorized Hacks 22 | . 4 . . 2 7 1 7 . . 1 . . . . . Terminals 22 | . 4 . . 2 7 1 7 . . 1 . . . . . Botnet 11 | . 2 . . 2 2 1 3 . . 1 . . . . . Disrupt 1 | . . . . . . . 1 . . . . . . . . Operators 1 | . . . . . . . 1 . . . . . . . . Skim 9 | . 2 . . . 5 . 2 . . . . . . . . Fabricators . | . . . . . . . . . . . . . . . . Repair Stations . | . . . . . . . . . . . . . . . . Recycling Units . | . . . . . . . . . . . . . . . . Scanalyzers . | . . . . . . . . . . . . . . . . Garrison Access . | . . . . . . . . . . . . . . . . Data Cores Recovered 2 | . . . . 1 . 1 . . . . . . . . . Used . | . . . . . . . . . . . . . . . . Hacking Detections 36 | . 6 . 3 5 5 4 8 1 . 1 . . . . 3 Full Trace Events 4 | . . . 1 1 . . 1 1 . . . . . . . Feedback Events 1 | . . . . . . . . 1 . . . . . . . Corruption 1 | . . . . . . . . 1 . . . . . . . Feedback Blocked . | . . . . . . . . . . . . . . . . Robot Schematics Acquired . | . . . . . . . . . . . . . . . . Robots Built . | . . . . . . . . . . . . . . . . Authchips . | . . . . . . . . . . . . . . . . Time . | . . . . . . . . . . . . . . . . Total Robot Build Rating . | . . . . . . . . . . . . . . . . Part Schematics Acquired 4 | . . . . . . . . . . . . . 4 . . Parts Built . | . . . . . . . . . . . . . . . . Authchips . | . . . . . . . . . . . . . . . . Time 139 | . . . . . . . . . . . . . . . 139 Total Part Build Rating . | . . . . . . . . . . . . . . . . Parts Repaired . | . . . . . . . . . . . . . . . . Time . | . . . . . . . . . . . . . . . . Parts Recycled . | . . . . . . . . . . . . . . . . Recycled Matter . | . . . . . . . . . . . . . . . . Retrieved Matter . | . . . . . . . . . . . . . . . . Retrieved Components 8 | . . . . . . 8 . . . . . . . . . Parts Scanalyzed . | . . . . . . . . . . . . . . . . Part Schematics Acquired . | . . . . . . . . . . . . . . . . Parts Damaged . | . . . . . . . . . . . . . . . . Bothacking | -11 -10 -10 -8 -8 -8 -6 -6 -6 -6 -5 -5 -5 -5 -4 -4 ------------ Run | Yrd Mat Sub Mat Sto Rec Fac Ext Cet Arc Fac Upp Upp Zhi Pro Fac Used RIF Installer . | . . . . . . . . . . . . . . . . Robots Hacked . | . . . . . . . . . . . . . . . . Non-combat . | . . . . . . . . . . . . . . . . Combat . | . . . . . . . . . . . . . . . . Robot Hacks Applied . | . . . . . . . . . . . . . . . . Relay Couplers Released 4 | . . . . . . . . . . 1 . . . . 3 Machine Destruction 4 | . . . . . . . . . . 1 . . . . 3 Fabnet Peak Effective % . | . . . . . . . . . . . . . . . . Robots Rewired 25 | . . . . . . 1 23 . . . . . . 1 . Allies Hacked 1 | . . . . . . 1 . . . . . . . . . Hacks Repelled . | . . . . . . . . . . . . . . . . Allies | -11 -10 -10 -8 -8 -8 -6 -6 -6 -6 -5 -5 -5 -5 -4 -4 -------- Run | Yrd Mat Sub Mat Sto Rec Fac Ext Cet Arc Fac Upp Upp Zhi Pro Fac Total Allies 40 | . . . . 10 . 1 27 1 . . . . . 1 . Largest Group 15 | . . . . 10 5 4 14 15 15 10 3 . . 1 . Highest-Rated Group 652 | . . . . 173 93 89 556 652 652 358 150 . . 47 . Highest-Rated Ally 159 | . . . . 29 29 29 159 159 159 96 91 . . 47 . Total Orders 3 | . . . . . . . . 3 . . . . . . . STAY 1 | . . . . . . . . 1 . . . . . . . FOLLOW 2 | . . . . . . . . 2 . . . . . . . Ally Attacks 404 | . . . . 49 31 28 161 34 31 42 25 . . 3 . Total Damage 6374 | . . . . 533 330 281 2605 716 639 696 496 . . 78 . Kills 50 | . . . . 9 4 1 16 7 3 4 6 . . . . Allies Corrupted 2 | . . . . . . . 1 . . . 1 . . . . Allies Melted . | . . . . . . . . . . . . . . . . Intel | -11 -10 -10 -8 -8 -8 -6 -6 -6 -6 -5 -5 -5 -5 -4 -4 ------- Run | Yrd Mat Sub Mat Sto Rec Fac Ext Cet Arc Fac Upp Upp Zhi Pro Fac Active Infowar (turns) 745 | 13 107 . 615 . . . . . . . . . . . 10 Sensors 10 | . . . . . . . . . . . . . . . 10 Seismic 735 | 13 107 . 615 . . . . . . . . . . . . Robot Analysis Total 8 | . 2 . . . 1 . 1 . . . . . 4 . . Derelict Logs Recovered 4 | . . 1 . . . . . . . . . 1 . 2 . Drone Launches . | . . . . . . . . . . . . . . . . Drone Recoveries . | . . . . . . . . . . . . . . . . Exploration | -11 -10 -10 -8 -8 -8 -6 -6 -6 -6 -5 -5 -5 -5 -4 -4 ------------- Run | Yrd Mat Sub Mat Sto Rec Fac Ext Cet Arc Fac Upp Upp Zhi Pro Fac Turns Passed 19593 | 253 1294 1416 2158 569 4209 1605 2430 660 433 136 1226 1172 355 1020 657 Spaces Moved 7118 | 126 501 443 604 167 1335 655 729 282 137 62 485 445 138 581 428 Core 763 | 9 . . 6 . 2 . . . . . . . . 318 428 Treads 3716 | 117 501 443 528 167 1333 155 108 282 82 . . . . . . Legs 2303 | . . . 70 . . 164 621 . 55 62 485 445 138 263 . Wheels . | . . . . . . . . . . . . . . . . Hover 336 | . . . . . . 336 . . . . . . . . . Flight . | . . . . . . . . . . . . . . . . Fastest Speed 50 | 50 160 240 190 250 233 153 138 156 156 156 156 156 251 50 50 Average Speed 210 | 152 226 258 266 250 259 215 184 156 156 156 156 241 251 140 121 Slowest Speed 1050 | 160 320 320 1050 250 950 258 251 156 156 156 156 251 251 251 250 Overloaded Moves . | . . . . . . . . . . . . . . . . Propulsion Burnouts . | . . . . . . . . . . . . . . . . Robots Hopped . | . . . . . . . . . . . . . . . . Potential Cave-ins . | . . . . . . . . . . . . . . . . Cave-ins Triggered . | . . . . . . . . . . . . . . . . Exploration Rate (%) 52 | 7 96 26 47 32 99 19 80 69 78 2 71 66 60 76 10 Regions Visited 15 Branch Regions 10 Pre-discovered Areas 6 | . . 1 . . 2 . . . . . . . 3 . . Known Exits Taken 4 | . . . 1 1 1 . . . . 1 . . . . . Unknown Exits Taken 11 | 1 1 1 . . . 1 1 1 1 . 1 1 1 1 . Scrap Searched 7 | . . 3 . . . . . . . . 2 1 . 1 . Spaces Dug 10 | . . . 6 . 2 . 1 . . . 1 . . . . Terrain Destroyed 161 | . . 17 39 . 2 13 31 3 5 . 8 16 . 27 . Melee . | . . . . . . . . . . . . . . . . Projectile 107 | . . . 8 . 2 7 31 3 5 . 8 16 . 27 . AOE 54 | . . 17 31 . . 6 . . . . . . . . . Terrain Rammed . | . . . . . . . . . . . . . . . . Walls Destroyed . | . . . . . . . . . . . . . . . . Machines Disabled . | . . . . . . . . . . . . . . . . Actions | -11 -10 -10 -8 -8 -8 -6 -6 -6 -6 -5 -5 -5 -5 -4 -4 --------- Run | Yrd Mat Sub Mat Sto Rec Fac Ext Cet Arc Fac Upp Upp Zhi Pro Fac Total 11081 | 157 580 664 950 301 2086 826 1707 495 348 101 941 502 150 722 551 Wait 2879 | . 19 178 148 110 705 98 633 187 199 37 426 12 . 65 62 Move 7103 | 125 500 442 603 166 1334 654 728 281 136 61 484 444 137 580 428 Hop . | . . . . . . . . . . . . . . . . Pick Up 123 | 10 10 8 36 6 14 9 13 3 2 1 2 . 5 . 4 Fast Attach 12 | . . . . . 1 3 1 4 . . . . . . 3 Attach 69 | 7 1 4 30 2 2 3 4 . . 2 1 4 3 4 2 Detach 9 | . . . . . 2 1 . . . . 1 1 1 3 . Swap 29 | . 3 6 14 . 1 1 2 . 2 . . . . . . Drop 79 | . 3 . 3 3 22 10 12 9 . . 8 . 4 2 3 Fire 512 | 15 44 26 116 14 5 32 127 11 9 . 19 41 . 53 . Melee . | . . . . . . . . . . . . . . . . Ram 23 | . . . . . . . . . . . . . . . 23 Kick 29 | . . . . . . . . . . . . . . 3 26 Crush . | . . . . . . . . . . . . . . . . Escape Stasis 18 | . . . . . . 13 5 . . . . . . . . Rewire 196 | . . . . . . 2 182 . . . . . . 12 . Trap . | . . . . . . . . . . . . . . . . Miscellaneous . | . . . . . . . . . . . . . . . . Route ------- -11/Scrapyard -10/Materials (discovered 6 exits: [*Mat x3] / [*Min x2] / *Sub) -10/Subcaves -8/Materials (discovered 4 exits: [*Fac x2] / *Sto x2) -8/Storage -8/Recycling -6/Factory (discovered 2 exits: *Fac / *Ext) -6/Extension (discovered 2 exits: *Fac / *Cet) -6/Cetus -6/Archives (discovered 3 exits: *Fac / [*Hub x2]) -5/Factory (discovered 2 exits: *Upp x2) -5/Upper Caves -5/Upper Caves -5/Zhirov -4/Proximity Caves -4/Factory History --------- Turn | Location | Event 3 | -11/Scrapyard | Discovered new exit (range 15) 254 | -11/Scrapyard | Entered Materials 300 | -10/Materials | Build established: Mutant 480 | -10/Materials | Discovered new exit (range 10) 899 | -10/Materials | Discovered new exit (range 7) 990 | -10/Materials | Discovered new exit (range 8) 1100 | -10/Materials | Discovered new exit (range 7) 1330 | -10/Materials | Discovered new exit (range 9) 1515 | -10/Materials | Discovered new exit (range 14) 1548 | -10/Materials | Entered Subcaves 1559 | -10/Subcaves | Core integrity fell below 50% 1827 | -10/Subcaves | Core integrity fell below 20% 1865 | -10/Subcaves | Lost 3 parts (1n1u1w) 2054 | -10/Subcaves | Visited Clippyterm 2061 | -10/Subcaves | Learned Factory emergency access door positions 2332 | -10/Subcaves | Learned location of Zion (-7) 2929 | -10/Subcaves | Discovered new exit (range 8) 2964 | -10/Subcaves | Entered Materials 2964 | -8/Materials | Evolved 4 slots: Utility x3, Weapon x1 2967 | -8/Materials | Discovered new exit (range 15) 3390 | -8/Materials | Build established: Scavenger-Tank 3524 | -8/Materials | Lost 8 parts (1p1n3u3w) 3600 | -8/Materials | Core integrity fell below 50% 3634 | -8/Materials | Lost 6 parts (1p1n1u3w) 3827 | -8/Materials | Build established: Scavenger-Gunner 3905 | -8/Materials | Lost 4 parts (1p1n1u1w) 4011 | -8/Materials | Discovered new exit (range 8) 4117 | -8/Materials | Garrison activated, responded to threat 4440 | -8/Materials | Core integrity fell below 20% 4620 | -8/Materials | Discovered new exit (range 11) 4679 | -8/Materials | Identified exit to Storage 4964 | -8/Materials | First assault squad dispatched 5122 | -8/Materials | Entered Storage 5451 | -8/Storage | Assisted by bots powering up and referring to "LRC-V3" 5501 | -8/Storage | Identified exit to Recycling 5602 | -8/Storage | Used back door to open Recycling access 5691 | -8/Storage | Entered Recycling 5691 | -8/Recycling | Accompanied by 5 allies 5702 | -8/Recycling | Lost 5 allies 5742 | -8/Recycling | Build established: Commander-Gunner 6517 | -8/Recycling | Identified exit to Factory 6547 | -8/Recycling | Learned 2 Storage zone layouts 6566 | -8/Recycling | Learned location of 1 exit from Recycling 6575 | -8/Recycling | Learned 2 Lower Caves zone layouts 6576 | -8/Recycling | Learned location of 1 exit from Lower Caves 6577 | -8/Recycling | Learned location of 2 exits from Lower Caves 6583 | -8/Recycling | Learned location of Storage (-8) 6600 | -8/Recycling | Learned Factory emergency access door positions 6825 | -8/Recycling | Build established: Gunner 7450 | -8/Recycling | Entered Scraplab 7462 | -8/Recycling | Found Prototype Device 7462 | -8/Recycling | Identified Scrap Engine 7754 | -8/Recycling | Build established: Mutant 8970 | -8/Recycling | Build established: Construct 9900 | -8/Recycling | Entered Factory 9900 | -6/Factory | Accompanied by 3 allies 9900 | -6/Factory | Evolved 4 slots: Power x1, Propulsion x1, Utility x1, Weapon x1 10872 | -6/Factory | Found Hvy. Reflective Plating 10975 | -6/Factory | Garrison activated, responded to threat 11198 | -6/Factory | Discovered new exit (range 6) 11375 | -6/Factory | Discovered new exit (range 11) 11505 | -6/Factory | Entered Extension 11817 | -6/Extension | Rescued a captive Derelict 12270 | -6/Extension | Lost 3 allies 12584 | -6/Extension | Rescued a captive Derelict 12586 | -6/Extension | Rescued a captive Derelict 12587 | -6/Extension | Build established: Commander-Construct 12590 | -6/Extension | Spotted B-75 Beast 12623 | -6/Extension | Spotted B-75 Beast 12634 | -6/Extension | Allies destroyed B-75 Beast 12674 | -6/Extension | Allies destroyed B-75 Beast 12722 | -6/Extension | Lost 6 allies 12890 | -6/Extension | Build established: Construct 13021 | -6/Extension | Rescued A7 13523 | -6/Extension | Build established: Commander-Construct 13855 | -6/Extension | Disrupted transfer network 13891 | -6/Extension | Discovered new exit (range 10) 13893 | -6/Extension | Discovered new exit (range 6) 13935 | -6/Extension | Entered Cetus 13935 | -6/Cetus | Accompanied by 14 allies (A7) 13940 | -6/Cetus | Acquired a Cetus Manufacturing Module code from A7 13955 | -6/Cetus | Spotted Cetus Guard 13956 | -6/Cetus | Spotted Cetus Guard 13966 | -6/Cetus | Spotted Cetus Guard 13968 | -6/Cetus | Allies destroyed Cetus Guard 13968 | -6/Cetus | Spotted Cetus Guard 13970 | -6/Cetus | Allies destroyed Cetus Guard 13972 | -6/Cetus | Allies destroyed Cetus Guard 13975 | -6/Cetus | Allies destroyed Cetus Guard 14183 | -6/Cetus | Started Cetus Manufacturing Module 14208 | -6/Cetus | Manufactured an Enhanced Grunt 14229 | -6/Cetus | Cetus Manufacturing Module disabled 14364 | -6/Cetus | Escorted A7 to Cetus Mainframe 14531 | -6/Cetus | Discovered new exit (range 16) 14595 | -6/Cetus | Entered Archives 14595 | -6/Archives | Accompanied by 15 allies (A7) 14600 | -6/Archives | Received a hacking code to weaken MAIN.C 14669 | -6/Archives | Lost 4 allies 14669 | -6/Archives | Discovered new exit (range 16) 14690 | -6/Archives | Discovered new exit (range 15) 14955 | -6/Archives | Discovered new exit (range 15) 15028 | -6/Archives | Entered Factory 15028 | -5/Factory | Accompanied by 10 allies 15028 | -5/Factory | Evolved 2 slots: Utility x2 15050 | -5/Factory | Identified exit to Upper Caves 15160 | -5/Factory | Lost 6 allies 15164 | -5/Factory | Entered Upper Caves 15164 | -5/Upper Caves | Accompanied by 3 allies 15426 | -5/Upper Caves | Build established: Scavenger-Construct 16151 | -5/Upper Caves | Ambushed by wild Derelicts 16271 | -5/Upper Caves | Discovered new exit (range 16) 16390 | -5/Upper Caves | Entered another Upper Caves area 16492 | -5/Upper Caves | Attracted the attention of an 0b10 checkpoint 17263 | -5/Upper Caves | Learned Factory emergency access door positions 17503 | -5/Upper Caves | Discovered new exit (range 3) 17562 | -5/Upper Caves | Entered Zhirov 17562 | -5/Zhirov | Discovered new exit (range 3) 17608 | -5/Zhirov | Met Zhirov 17663 | -5/Zhirov | Learned location of Quarantine (-3) 17663 | -5/Zhirov | Learned location of Testing (-2) 17663 | -5/Zhirov | Learned location of Command (-1) 17678 | -5/Zhirov | Zhirov requested help retrieving the SGEMP Prototype 17751 | -5/Zhirov | Found Alien Artifact 17752 | -5/Zhirov | Identified Integrated Dissipator 17752 | -5/Zhirov | Installed Integrated Dissipator, increased core heat dissipation (+20) 17917 | -5/Zhirov | Entered Proximity Caves 18420 | -4/Proximity Caves | Build established: Construct 18453 | -4/Proximity Caves | Attracted the attention of an 0b10 outpost 18512 | -4/Proximity Caves | Lost 3 parts (1p1u1w) 18688 | -4/Proximity Caves | Learned Research terminal intel 18826 | -4/Proximity Caves | Lost 8 parts (1p2n3u2w) 18867 | -4/Proximity Caves | Discovered new exit (range 13) 18937 | -4/Proximity Caves | Entered Factory 18937 | -4/Factory | Evolved 2 slots: Utility x2 19031 | -4/Factory | Build established: Mutant 19159 | -4/Factory | Found Quantum Capacitor 19570 | -4/Factory | System corruption reached 10% 19581 | -4/Factory | Core integrity fell below 50% 19589 | -4/Factory | Core integrity fell below 20% 19594 | -4/Factory | Destroyed by S-27 Virus with Autogun Last Messages --------------- 19578_ Scrap Engine destroyed. 19578_ Adv. Heat Sink destroyed. 19579_ Slammed into P-70 Sage. 19579_ Destabilizing: Core damaged (-57). 19580_ Slammed into P-70 Sage. 19584_ Chain reaction triggered in Lgt. Nuclear Core. 19584_ Relay Coupler [Grunt] tumbles out of Garrison Access. 19584_ Relay Coupler [NC] tumbles out of Garrison Access. 19584_ Relay Coupler [Grunt] tumbles out of Garrison Access. 19585_ Slammed into P-70 Sage. 19587_ Destabilizing: Core damaged (-57). 19587_ Quantum Capacitor destroyed. 19588_ Slammed into P-70 Sage. 19593_ P-70 Sage resets S-27 Virus, system corruption cleaned. 19594_ Slammed into P-70 Sage. Map ----- +----------------------------------------------------+ | | | | | | | | | | | | | | | | | | | | | | | | | | | | | | | | | | | | | | | | | | | | | | | ?############??????????#;#;;;######??????????????? | | ? #??????????#; ! #??????????????? | | ? #??????????#;@ p "G"" #??????????????? | | """"" #??????????##pss " " #??????????????? | | """"" #???????????; s= #???######?????? | | """ #???????????#####+##+###### #?????? | | #????????# + "" #?????? | | """"" #????????# ######## "" #?????? | | """"" #????????# #??????# F" ####+## | | """ #????????# #??????# "" + ^ | | #????????+ +??????# # | | #????????# #??????/ ! # """ | | #????????######## #??????# + """ | | ######+################?????# #??????# # """ | | + #?????? #?########### | | # #?????# | | # """"""""" #######+########### ##### | | # ## #???# #???? | | # """"""""" ## #???# #????? | | # ## #???# #?????? | | ###/#####+##### #???# #??????? | | #### # #???# #??????? | | + # #???# #??????? | | # + #???# #??????? | | # # #???# #??????? | | # # #####+#####+## | | ## ####+######### # # # | +----------------------------------------------------+ Best States ------------- Heat Dissipation 98 Energy Generation 37 Energy Capacity 564 Matter Stores 300 Matter Capacity 300 Sight Range 16 Robot Scan Range 18 Terrain Scan Density 10 EM Shielding 2 Armor Coverage 1050 Resistance: KI 20 Resistance: TH 25 Weapon Cycling 15 Evasion (%) 55 Armor Integrity Analysis 30 Recoil Reduction 3 Item Schematics ----------------- Assault Drone Bay | -5/Zhirov | Free Exp. Heat Sink | -5/Zhirov | Free Exp. Optical Array | -5/Zhirov | Free Imp. Arc Thrower | -5/Zhirov | Free Robot Schematics ------------------ None Fabricated ------------ Nothing Repaired ---------- Nothing Alien Tech Used ----------------- Integrated Dissipator Achievements -------------- None Challenges ------------ None Game ------ Seed VoltaicNavigationSegregator Manual? 0 Play Time 02:20:38 Cumulative 81.4 hours Start 2025.06.21 @ 12:27:22 End 2025.06.21 @ 17:54:56 Sessions 3 Manual Loads 0 Difficulty Rogue Special Mode None Game No. 79 Rogue 60 Adventurer 0 Explorer 19 Win Type - Total 0 Types 0/0/0/0/0/0/0/0/0/0 Lore% 54 Gallery% 45 Achievement% 68 Wizard Run 0 Options --------- Layout 1 ASCII 0 Keyboard 0 Movement Mouse Keybinds 0 Fullscreen 2 Font 16/SmallcapsGlow Map View 50x40 Zoom Use 0% Tactical HUD 1 Map Filters NONE Filters NONE Steam SD RUN: e6266ab2-4806-450f-92b3-fe7cd3188cd6